[Event "CAN-op"]
[Site "Ottawa CAN"]
[Date "2026.07.11"]
[Round "2.2"]
[White "Rodrigue-Lemieux, Shawn"]
[Black "Jammalamadaka, Vihaan"]
[Result "1-0"]
[ECO "D32"]
[WhiteElo "2534"]
[BlackElo "2109"]
[WhiteFideId "-1"]
[BlackFideId "-1"]
[PlyCount "93"]
[GameId "2332995606986252"]
[EventDate "2026.07.11"]
[EventType "swiss"]
[EventRounds "9"]
[EventCountry "CAN"]
[TimeControl "5400+30"]
[WhiteClock "0:03:49"]
[BlackClock "0:04:38"]

1. d4 {[%emt 0:00:24.94]} d5 {[%emt 0:00:43.94]} 2. c4 {[%emt 0:00:11]} e6 {[%emt 0:00:10]} 3. Nc3 {[%emt 0:00:09]} a6 {[%emt 0:00:09]} 4. cxd5 {[%emt 0:00:35]} exd5 {[%emt 0:00:09]} 5. Bf4 {[%emt 0:00:53]} Nf6 {[%emt 0:00:10]} 6. e3 {[%emt 0:00:07]} c5 {[%emt 0:00:25]} 7. dxc5 {[%emt 0:02:46]} Bxc5 {[%emt 0:00:15]} 8. Nf3 {[%emt 0:00:18]} Nc6 {[%emt 0:03:29]} 9. Be2 {[%emt 0:00:54]} h6 {[%emt 0:05:59]} 10. O-O {[%emt 0:00:42]} O-O {[%emt 0:00:22]} 11. Rc1 {[%emt 0:00:30]} Be6 {[%emt 0:09:38]} 12. Na4 {[%emt 0:05:35]} Be7 {[%emt 0:02:34]} 13. Nd4 {[%emt 0:03:04]} Nxd4 {[%emt 0:15:19.10]} 14. Qxd4 {[%emt 0:00:10]} Nd7 {[%emt 0:00:11]} 15. Bc7 {[%emt 0:03:23]} Qe8 {[%emt 0:01:27]} 16. Nb6 {[%emt 0:04:23]} Bf6 {[%emt 0:05:48]} 17. Qb4 {[%emt 0:02:29]} Nxb6 {[%emt 0:02:43]} 18. Qxb6 {[%emt 0:00:12]} d4 {[%emt 0:00:28]} 19. exd4 {[%emt 0:02:29]} Bd5 {[%emt 0:03:40]} 20. Bc4 {[%emt 0:22:08.10]} Qe4 {[%emt 0:04:20]} 21. Bxd5 {[%emt 0:00:53]} Qxd5 {[%emt 0:00:05]} 22. Rfd1 {[%emt 0:02:13]} Rfe8 {[%emt 0:02:42]} 23. Qb3 {[%emt 0:16:30]} Qg5 {[%emt 0:18:26]} 24. Rc5 {[%emt 0:09:11]} Qg4 {[%emt 0:03:49]} 25. h3 {[%emt 0:00:46]} Qd7 {[%emt 0:01:55]} 26. Bg3 {[%emt 0:03:24]} Rac8 {[%emt 0:02:34]} 27. Rxc8 {[%emt 0:00:24]} Rxc8 {[%emt 0:00:09]} 28. d5 {[%emt 0:00:21]} h5 {[%emt 0:01:14]} 29. d6 {[%emt 0:02:06]} h4 {[%emt 0:00:39]} 30. Bf4 {[%emt 0:00:06]} Re8 {[%emt 0:02:30]} 31. Qc2 {[%emt 0:01:42]} Rc8 {[%emt 0:01:31]} 32. Qd2 {[%emt 0:01:59]} Rc4 {[%emt 0:01:16]} 33. b3 {[%emt 0:06:46]} Re4 {[%emt 0:01:32]} 34. Qc1 {[%emt 0:01:23]} Bd8 {[%emt 0:02:06]} 35. Be3 {[%emt 0:01:15]} Re6 {[%emt 0:00:23]} 36. Qc5 {[%emt 0:00:35]} Rg6 {[%emt 0:00:45]} 37. Kh1 {[%emt 0:00:50]} Kh7 {[%emt 0:01:44]} 38. Bf4 {[%emt 0:00:45]} Bf6 {[%emt 0:03:33]} 39. Qh5+ {[%emt 0:02:11]} Kg8 {[%emt 0:00:02]} 40. Qd5 {[%emt 0:00:11]} Bd8 {[%emt 0:00:50]} 41. Re1 {[%emt 0:00:30]} Rf6 {[%emt 0:00:43]} 42. Re4 {[%emt 0:00:48]} Rf5 {[%emt 0:00:40]} 43. Qd3 {[%emt 0:00:57]} Bf6 {[%emt 0:00:46]} 44. Rc4 {[%emt 0:00:47]} Qe6 {[%emt 0:00:01]} 45. d7 {[%emt 0:01:45]} Qd5 {[%emt 0:00:42]} 46. Rd4 {[%emt 0:00:22]} Bxd4 {[%emt 0:00:15]} 47. Qxf5 {[%emt 0:00:08]} 1-0

[Event "CAN-op"]
[Site "Ottawa CAN"]
[Date "2026.07.11"]
[Round "2.3"]
[White "Moses, Neil"]
[Black "Atanasov, Anthony"]
[Result "0-1"]
[ECO "B32"]
[WhiteElo "2183"]
[BlackElo "2470"]
[WhiteFideId "-1"]
[BlackFideId "-1"]
[PlyCount "134"]
[GameId "2332995606990349"]
[EventDate "2026.07.11"]
[EventType "swiss"]
[EventRounds "9"]
[EventCountry "CAN"]
[TimeControl "5400+30"]
[WhiteClock "0:04:22"]
[BlackClock "0:01:51"]

1. e4 {[%emt 0:00:41.94]} c5 {[%emt 0:00:04.94]} 2. Nf3 {[%emt 0:00:08]} Nc6 {[%emt 0:00:03]} 3. d4 {[%emt 0:00:07]} cxd4 {[%emt 0:00:05]} 4. Nxd4 {[%emt 0:00:07]} e5 {[%emt 0:00:08]} 5. Nb5 {[%emt 0:00:06]} d6 {[%emt 0:00:06]} 6. a4 {[%emt 0:00:07]} Be6 {[%emt 0:11:16]} 7. N1c3 {[%emt 0:00:13]} a6 {[%emt 0:04:27]} 8. Na3 {[%emt 0:00:18]} Be7 {[%emt 0:02:05]} 9. Bc4 {[%emt 0:00:35]} Qd7 {[%emt 0:00:34]} 10. Bxe6 {[%emt 0:11:03]} fxe6 {[%emt 0:00:45]} 11. Nc4 {[%emt 0:07:08]} Rd8 {[%emt 0:00:25]} 12. O-O {[%emt 0:06:42]} Nf6 {[%emt 0:00:07]} 13. Bg5 {[%emt 0:07:00]} O-O {[%emt 0:00:26]} 14. Bxf6 {[%emt 0:04:48.10]} Bxf6 {[%emt 0:02:51]} 15. Ne2 {[%emt 0:05:32]} d5 {[%emt 0:01:31]} 16. Nd2 {[%emt 0:01:39]} Be7 {[%emt 0:02:05]} 17. Nb3 {[%emt 0:08:37]} Qc7 {[%emt 0:06:54]} 18. Ng3 {[%emt 0:03:06]} Kh8 {[%emt 0:05:01]} 19. Qe2 {[%emt 0:05:46]} Qb6 {[%emt 0:02:50.10]} 20. Kh1 {[%emt 0:02:26]} d4 {[%emt 0:10:15]} 21. a5 {[%emt 0:11:10]} Qc7 {[%emt 0:02:28]} 22. c3 {[%emt 0:03:45]} d3 {[%emt 0:11:18]} 23. Qe3 {[%emt 0:03:11]} h6 {[%emt 0:01:24]} 24. Rad1 {[%emt 0:02:30]} Nxa5 {[%emt 0:05:29]} 25. Nxa5 {[%emt 0:00:23]} Bg5 {[%emt 0:00:20]} 26. Qa7 {[%emt 0:00:30]} Qxa5 {[%emt 0:00:09]} 27. Qxb7 {[%emt 0:00:10]} Qb5 {[%emt 0:04:37]} 28. Qxb5 {[%emt 0:01:12]} axb5 {[%emt 0:00:01]} 29. Kg1 {[%emt 0:02:20]} Rf7 {[%emt 0:02:20]} 30. Rfe1 {[%emt 0:03:29]} Bc1 {[%emt 0:07:40]} 31. b3 {[%emt 0:02:50]} Rc7 {[%emt 0:00:29]} 32. Nf1 {[%emt 0:00:44]} Bb2 {[%emt 0:01:12]} 33. c4 {[%emt 0:00:45]} bxc4 {[%emt 0:00:02]} 34. bxc4 {[%emt 0:00:06]} Rxc4 {[%emt 0:00:12]} 35. Re3 {[%emt 0:00:07]} Rc3 {[%emt 0:02:38]} 36. g3 {[%emt 0:00:59]} g5 {[%emt 0:01:12]} 37. h3 {[%emt 0:00:25]} Kg7 {[%emt 0:00:21]} 38. Kg2 {[%emt 0:00:26]} Ba3 {[%emt 0:01:50]} 39. Rf3 {[%emt 0:01:51]} h5 {[%emt 0:02:37]} 40. g4 {[%emt 0:01:10]} h4 {[%emt 0:00:33]} 41. Rd2 {[%emt 0:02:21]} Bc1 {[%emt 0:00:21]} 42. Rd1 {[%emt 0:00:48]} Bf4 {[%emt 0:00:56]} 43. Kg1 {[%emt 0:00:07]} Kg6 {[%emt 0:02:23]} 44. Kg2 {[%emt 0:00:20]} Rd7 {[%emt 0:00:53]} 45. Kg1 {[%emt 0:01:11]} Rd4 {[%emt 0:01:15]} 46. Kg2 {[%emt 0:00:44]} Rc1 {[%emt 0:02:46]} 47. Rdxd3 {[%emt 0:00:44]} Rxe4 {[%emt 0:00:01]} 48. Rc3 {[%emt 0:00:20]} Rce1 {[%emt 0:01:05]} 49. Rfd3 {[%emt 0:01:05]} Rd4 {[%emt 0:00:01]} 50. Ra3 {[%emt 0:00:18]} Rxd3 {[%emt 0:06:07]} 51. Rxd3 {[%emt 0:00:01]} e4 {[%emt 0:00:01]} 52. Ra3 {[%emt 0:00:21]} Re2 {[%emt 0:00:01]} 53. Kg1 {[%emt 0:00:18]} Kf6 {[%emt 0:00:32]} 54. Rb3 {[%emt 0:00:36]} Ke5 {[%emt 0:00:26]} 55. Ra3 {[%emt 0:00:54]} Kd4 {[%emt 0:00:39]} 56. Ra4+ {[%emt 0:00:57]} Kc3 {[%emt 0:00:31]} 57. Ra3+ {[%emt 0:00:34]} Kb4 {[%emt 0:00:15]} 58. Ra6 {[%emt 0:00:21]} e5 {[%emt 0:00:01]} 59. Rc6 {[%emt 0:00:14]} Kb3 {[%emt 0:00:16]} 60. Rc8 {[%emt 0:00:38]} Rc2 {[%emt 0:00:33]} 61. Rb8+ {[%emt 0:00:47]} Kc3 {[%emt 0:00:07]} 62. Rc8+ {[%emt 0:00:13]} Kd3 {[%emt 0:00:07]} 63. Ra8 {[%emt 0:00:30]} Ke2 {[%emt 0:01:22]} 64. Ra4 {[%emt 0:00:08]} e3 {[%emt 0:02:10]} 65. fxe3 {[%emt 0:00:44]} Bxe3+ {[%emt 0:00:16]} 66. Nxe3 {[%emt 0:00:10]} Kxe3 {[%emt 0:00:01]} 67. Ra3+ {[%emt 0:00:01]} Kf4 {[%emt 0:00:12]} 0-1

[Event "CAN-op"]
[Site "Ottawa CAN"]
[Date "2026.07.11"]
[Round "2.4"]
[White "Preotu, Razvan"]
[Black "Piasetski, Leon"]
[Result "1/2-1/2"]
[ECO "C10"]
[WhiteElo "2482"]
[BlackElo "2159"]
[WhiteFideId "-1"]
[BlackFideId "-1"]
[PlyCount "44"]
[GameId "2332995607002638"]
[EventDate "2026.07.11"]
[EventType "swiss"]
[EventRounds "9"]
[EventCountry "CAN"]
[TimeControl "5400+30"]
[WhiteClock "0:12:21"]
[BlackClock "0:37:23"]

1. e4 {[%emt 0:08:37.94]} e6 {[%emt 0:00:21.94]} 2. d4 {[%emt 0:00:11]} d5 {[%emt 0:00:08]} 3. Nc3 {[%emt 0:00:08]} dxe4 {[%emt 0:00:12]} 4. Nxe4 {[%emt 0:00:08]} Nd7 {[%emt 0:00:08]} 5. Nf3 {[%emt 0:03:27]} Ngf6 {[%emt 0:01:34]} 6. Nxf6+ {[%emt 0:00:12]} Nxf6 {[%emt 0:00:13]} 7. g3 {[%emt 0:00:17]} Bd7 {[%emt 0:16:08]} 8. Ne5 {[%emt 0:01:35]} Bc6 {[%emt 0:00:17]} 9. f3 {[%emt 0:22:39.10]} Ba4 {[%emt 0:07:09]} 10. Bg2 {[%emt 0:08:05]} Bb4+ {[%emt 0:02:26]} 11. Kf1 {[%emt 0:00:42]} O-O {[%emt 0:02:54]} 12. Be3 {[%emt 0:01:22]} c5 {[%emt 0:06:02.10]} 13. a3 {[%emt 0:04:51]} cxd4 {[%emt 0:00:28]} 14. Qxd4 {[%emt 0:01:08]} Qxd4 {[%emt 0:00:19]} 15. Bxd4 {[%emt 0:00:01]} Be7 {[%emt 0:00:44]} 16. b3 {[%emt 0:00:19]} Rfd8 {[%emt 0:00:35]} 17. Bf2 {[%emt 0:14:05]} Nd7 {[%emt 0:15:18]} 18. Nd3 {[%emt 0:07:18]} Bc6 {[%emt 0:00:13]} 19. Nb4 {[%emt 0:02:13]} Bb5+ {[%emt 0:04:15]} 20. c4 {[%emt 0:00:27]} a5 {[%emt 0:00:06]} 21. Nd3 {[%emt 0:00:56]} Bc6 {[%emt 0:00:12]} 22. f4 {[%emt 0:10:27]} Rac8 {[%emt 0:04:24]} 1/2-1/2

[Event "CAN-op"]
[Site "Ottawa CAN"]
[Date "2026.07.11"]
[Round "2.5"]
[White "Demchenko, Svitlana"]
[Black "Noritsyn, Nikolay"]
[Result "0-1"]
[ECO "A46"]
[WhiteElo "2159"]
[BlackElo "2458"]
[WhiteFideId "-1"]
[BlackFideId "-1"]
[PlyCount "68"]
[GameId "2332995607002639"]
[EventDate "2026.07.11"]
[EventType "swiss"]
[EventRounds "9"]
[EventCountry "CAN"]
[TimeControl "5400+30"]
[WhiteClock "0:00:34"]
[BlackClock "0:19:28"]

1. d4 {[%emt 0:00:07.94]} Nf6 {[%emt 0:00:14.94]} 2. Nf3 {[%emt 0:00:14]} e6 {[%emt 0:00:18]} 3. Bf4 {[%emt 0:00:35]} h6 {[%emt 0:02:45]} 4. h3 {[%emt 0:06:29]} b6 {[%emt 0:01:09]} 5. e3 {[%emt 0:00:33]} Bb7 {[%emt 0:00:19]} 6. Bd3 {[%emt 0:01:48]} d6 {[%emt 0:03:38]} 7. Nbd2 {[%emt 0:01:41]} Nbd7 {[%emt 0:00:46]} 8. e4 {[%emt 0:12:57]} Qe7 {[%emt 0:11:14]} 9. Qe2 {[%emt 0:08:49]} a6 {[%emt 0:00:41]} 10. Bh2 {[%emt 0:01:13]} g6 {[%emt 0:03:56]} 11. e5 {[%emt 0:13:46.10]} dxe5 {[%emt 0:00:27]} 12. dxe5 {[%emt 0:00:10]} Nd5 {[%emt 0:00:38]} 13. c4 {[%emt 0:07:54]} Nb4 {[%emt 0:00:24]} 14. Be4 {[%emt 0:01:17]} Nc6 {[%emt 0:01:40]} 15. O-O {[%emt 0:03:05]} Bg7 {[%emt 0:01:24]} 16. a3 {[%emt 0:01:28]} a5 {[%emt 0:02:13]} 17. Nb3 {[%emt 0:06:07]} Rd8 {[%emt 0:15:01.10]} 18. Nbd4 {[%emt 0:05:57]} Ndb8 {[%emt 0:00:44]} 19. Rad1 {[%emt 0:03:57]} O-O {[%emt 0:00:35]} 20. h4 {[%emt 0:05:01]} Nxd4 {[%emt 0:11:27]} 21. Nxd4 {[%emt 0:00:21]} Qxh4 {[%emt 0:09:22]} 22. Bxb7 {[%emt 0:10:09]} Rxd4 {[%emt 0:00:34]} 23. Bg3 {[%emt 0:00:55]} Qd8 {[%emt 0:00:20]} 24. Rxd4 {[%emt 0:03:03]} Qxd4 {[%emt 0:00:05]} 25. Rd1 {[%emt 0:00:12]} Qc5 {[%emt 0:00:09]} 26. Qe4 {[%emt 0:00:37]} Qe7 {[%emt 0:04:35]} 27. Qd4 {[%emt 0:01:57]} c5 {[%emt 0:01:41]} 28. Qe4 {[%emt 0:00:12]} Rd8 {[%emt 0:00:55]} 29. Rd6 {[%emt 0:01:56]} Qc7 {[%emt 0:07:34]} 30. b3 {[%emt 0:01:58]} Bf8 {[%emt 0:00:46]} 31. Rxd8 {[%emt 0:00:07]} Qxd8 {[%emt 0:00:04]} 32. Qf3 {[%emt 0:00:47]} Bg7 {[%emt 0:00:36]} 33. Be4 {[%emt 0:01:00]} Qd4 {[%emt 0:01:09]} 34. Qf4 {[%emt 0:00:33]} Nd7 {[%emt 0:00:38]} 0-1

[Event "CAN-op"]
[Site "Ottawa CAN"]
[Date "2026.07.11"]
[Round "2.7"]
[White "Kola, Venkat Karthikeya R"]
[Black "Sambuev, Bator"]
[Result "0-1"]
[ECO "D30"]
[WhiteElo "2130"]
[BlackElo "2420"]
[WhiteFideId "-1"]
[BlackFideId "-1"]
[PlyCount "98"]
[GameId "2332995607023122"]
[EventDate "2026.07.11"]
[EventType "swiss"]
[EventRounds "9"]
[EventCountry "CAN"]
[TimeControl "5400+30"]
[WhiteClock "0:36:08"]
[BlackClock "0:46:26"]

1. d4 {[%emt 0:04:00.94]} d5 {[%emt 0:00:35.94]} 2. c4 {[%emt 0:00:04]} e6 {[%emt 0:00:06]} 3. g3 {[%emt 0:00:02]} c6 {[%emt 0:00:06]} 4. Bg2 {[%emt 0:00:03]} dxc4 {[%emt 0:00:06]} 5. Nf3 {[%emt 0:00:09]} b5 {[%emt 0:00:06]} 6. O-O {[%emt 0:00:04]} Nd7 {[%emt 0:00:46]} 7. a4 {[%emt 0:00:06]} Bb7 {[%emt 0:00:09]} 8. Nc3 {[%emt 0:00:46]} a6 {[%emt 0:00:09]} 9. e4 {[%emt 0:00:18]} Ngf6 {[%emt 0:00:40]} 10. Qc2 {[%emt 0:00:39]} Be7 {[%emt 0:00:37]} 11. e5 {[%emt 0:02:12]} Nd5 {[%emt 0:00:07]} 12. Ne4 {[%emt 0:00:14]} h6 {[%emt 0:00:24]} 13. Bd2 {[%emt 0:05:19]} Qb6 {[%emt 0:01:36]} 14. axb5 {[%emt 0:01:30]} cxb5 {[%emt 0:00:51]} 15. Ba5 {[%emt 0:00:06]} Qa7 {[%emt 0:00:57]} 16. Qd2 {[%emt 0:01:16]} O-O {[%emt 0:01:36]} 17. h4 {[%emt 0:06:21]} f5 {[%emt 0:01:55]} 18. exf6 {[%emt 0:00:08]} N5xf6 {[%emt 0:00:14]} 19. Nxf6+ {[%emt 0:00:22]} Rxf6 {[%emt 0:05:52]} 20. Qe3 {[%emt 0:02:46]} Raf8 {[%emt 0:02:09]} 21. Nd2 {[%emt 0:00:42]} Bxg2 {[%emt 0:00:43]} 22. Kxg2 {[%emt 0:00:32]} e5 {[%emt 0:02:32]} 23. Rae1 {[%emt 0:07:01]} Qa8+ {[%emt 0:09:32]} 24. Kg1 {[%emt 0:01:20]} R6f7 {[%emt 0:03:49]} 25. Re2 {[%emt 0:11:11.10]} exd4 {[%emt 0:02:10]} 26. Qxd4 {[%emt 0:00:39]} Bc5 {[%emt 0:02:24]} 27. Qe4 {[%emt 0:02:53]} Nf6 {[%emt 0:00:38]} 28. Qxa8 {[%emt 0:00:23]} Rxa8 {[%emt 0:00:10]} 29. Rfe1 {[%emt 0:01:08]} Rd7 {[%emt 0:01:14]} 30. Kg2 {[%emt 0:00:26]} Kf7 {[%emt 0:00:27]} 31. Nf3 {[%emt 0:00:47]} Rd5 {[%emt 0:04:01.10]} 32. Re5 {[%emt 0:01:59]} Rc8 {[%emt 0:02:36]} 33. Rxd5 {[%emt 0:07:27]} Nxd5 {[%emt 0:02:02]} 34. Ne5+ {[%emt 0:00:01]} Kg8 {[%emt 0:00:36]} 35. Ng6 {[%emt 0:00:16]} Nb4 {[%emt 0:06:55]} 36. h5 {[%emt 0:04:12]} Nc6 {[%emt 0:00:31]} 37. Bd2 {[%emt 0:01:11]} Kf7 {[%emt 0:01:13]} 38. f4 {[%emt 0:02:31]} Re8 {[%emt 0:01:52]} 39. Kf3 {[%emt 0:05:18]} Rxe1 {[%emt 0:01:43]} 40. Bxe1 {[%emt 0:00:07]} Bd4 {[%emt 0:00:04]} 41. Bc3 {[%emt 0:00:34]} Bxc3 {[%emt 0:00:37]} 42. bxc3 {[%emt 0:00:01]} a5 {[%emt 0:00:15]} 43. Ke3 {[%emt 0:00:07]} a4 {[%emt 0:01:09]} 44. Kd2 {[%emt 0:00:25]} Ke6 {[%emt 0:00:41]} 45. g4 {[%emt 0:00:08]} a3 {[%emt 0:00:56]} 46. Kc1 {[%emt 0:00:23]} b4 {[%emt 0:00:11]} 47. cxb4 {[%emt 0:00:32]} Nxb4 {[%emt 0:00:12]} 48. Ne5 {[%emt 0:00:08]} a2 {[%emt 0:00:15]} 49. Kb2 {[%emt 0:00:04]} c3+ {[%emt 0:00:04]} 0-1

[Event "CAN-op"]
[Site "Ottawa CAN"]
[Date "2026.07.11"]
[Round "2.8"]
[White "Golubka, Petro"]
[Black "Rousskikh, Maxim"]
[Result "1-0"]
[ECO "A95"]
[WhiteElo "2355"]
[BlackElo "1998"]
[WhiteFideId "-1"]
[BlackFideId "-1"]
[PlyCount "79"]
[GameId "2332995607027219"]
[EventDate "2026.07.11"]
[EventType "swiss"]
[EventRounds "9"]
[EventCountry "CAN"]
[TimeControl "5400+30"]
[WhiteClock "0:24:38"]
[BlackClock "0:01:36"]

1. d4 {[%emt 0:06:00.94]} d5 {[%emt 0:00:26.94]} 2. Nf3 {[%emt 0:00:08]} Nf6 {[%emt 0:00:33]} 3. g3 {[%emt 0:00:06]} e6 {[%emt 0:01:05]} 4. Bg2 {[%emt 0:00:11]} Be7 {[%emt 0:00:09]} 5. c4 {[%emt 0:00:05]} Ne4 {[%emt 0:00:07]} 6. Nc3 {[%emt 0:01:06]} c6 {[%emt 0:02:31]} 7. O-O {[%emt 0:00:00]} f5 {[%emt 0:00:08]} 8. Bf4 {[%emt 0:05:12]} O-O {[%emt 0:02:10]} 9. h4 {[%emt 0:06:22]} Nd7 {[%emt 0:06:22]} 10. a4 {[%emt 0:03:07]} a5 {[%emt 0:07:27]} 11. Qc2 {[%emt 0:00:00]} h6 {[%emt 0:08:17]} 12. b3 {[%emt 0:00:00]} Qe8 {[%emt 0:03:09]} 13. Rad1 {[%emt 0:09:00]} Qh5 {[%emt 0:06:43.10]} 14. Bc7 {[%emt 0:06:46.10]} Ndf6 {[%emt 0:07:43]} 15. Ne5 {[%emt 0:17:04]} g5 {[%emt 0:04:42]} 16. Bf3 {[%emt 0:01:19]} g4 {[%emt 0:04:24]} 17. Bg2 {[%emt 0:00:00]} Ne8 {[%emt 0:12:08]} 18. Bb6 {[%emt 0:00:00]} Bd6 {[%emt 0:06:02]} 19. Nxe4 {[%emt 0:00:00]} fxe4 {[%emt 0:00:00]} 20. Qd2 {[%emt 0:00:00]} Bb4 {[%emt 0:00:00]} 21. Qc1 {[%emt 0:00:00]} Bd6 {[%emt 0:02:42]} 22. Qc3 {[%emt 0:00:00]} Bb4 {[%emt 0:00:28]} 23. Qb2 {[%emt 0:00:00]} Ng7 {[%emt 0:01:12]} 24. f3 {[%emt 0:00:00]} gxf3 {[%emt 0:02:07]} 25. exf3 {[%emt 0:00:00]} e3 {[%emt 0:04:13]} 26. Rd3 {[%emt 0:01:33]} Ra6 {[%emt 0:03:49]} 27. c5 {[%emt 0:02:18]} Rxb6 {[%emt 0:01:22]} 28. cxb6 {[%emt 0:00:06]} c5 {[%emt 0:01:05]} 29. Rxe3 {[%emt 0:06:28]} cxd4 {[%emt 0:00:43]} 30. Re2 {[%emt 0:00:26]} Bc5 {[%emt 0:01:24]} 31. Rc1 {[%emt 0:07:18]} Bxb6 {[%emt 0:00:32]} 32. Kh2 {[%emt 0:00:29]} Nf5 {[%emt 0:01:09]} 33. f4 {[%emt 0:03:44]} Ne3 {[%emt 0:05:06]} 34. Bh3 {[%emt 0:02:32]} d3 {[%emt 0:03:39]} 35. Nxd3 {[%emt 0:00:31]} Bd4 {[%emt 0:01:34]} 36. Qd2 {[%emt 0:00:15]} Qf3 {[%emt 0:01:47]} 37. Ne5 {[%emt 0:02:29]} Qh5 {[%emt 0:01:02]} 38. Rxe3 {[%emt 0:00:16]} Bxe3 {[%emt 0:00:04]} 39. Qxe3 {[%emt 0:00:02]} Qe8 {[%emt 0:00:19]} 40. Bg4 {[%emt 0:00:58]} 1-0

[Event "CAN-op"]
[Site "Ottawa CAN"]
[Date "2026.07.12"]
[Round "3.3"]
[White "Noritsyn, Nikolay"]
[Black "Plotkin, Victor"]
[Result "0-1"]
[ECO "A07"]
[WhiteElo "2458"]
[BlackElo "2279"]
[WhiteFideId "-1"]
[BlackFideId "-1"]
[PlyCount "163"]
[GameId "2332995607060026"]
[EventDate "2026.07.11"]
[EventType "swiss"]
[EventRounds "9"]
[EventCountry "CAN"]
[TimeControl "5400+30"]
[WhiteClock "0:01:00"]
[BlackClock "0:01:53"]

1. Nf3 {[%emt 0:00:09.94]} Nf6 {[%emt 0:00:07.94]} 2. g3 {[%emt 0:00:34]} d5 {[%emt 0:00:12]} 3. Bg2 {[%emt 0:00:16]} Bg4 {[%emt 0:01:14]} 4. c4 {[%emt 0:02:13]} c6 {[%emt 0:02:59]} 5. d4 {[%emt 0:07:51]} e6 {[%emt 0:01:52]} 6. h3 {[%emt 0:01:22]} Bf5 {[%emt 0:02:40]} 7. Nc3 {[%emt 0:03:59]} h6 {[%emt 0:01:55]} 8. Qb3 {[%emt 0:14:03]} Qb6 {[%emt 0:02:47]} 9. c5 {[%emt 0:00:13]} Qxb3 {[%emt 0:00:35]} 10. axb3 {[%emt 0:00:05]} Na6 {[%emt 0:04:06]} 11. Bf4 {[%emt 0:11:10.10]} Ne4 {[%emt 0:04:51]} 12. g4 {[%emt 0:02:12]} Bh7 {[%emt 0:00:49]} 13. Ne5 {[%emt 0:01:23]} g5 {[%emt 0:06:59]} 14. Bxe4 {[%emt 0:09:29]} dxe4 {[%emt 0:02:24]} 15. Bg3 {[%emt 0:00:55]} Bg7 {[%emt 0:13:29.10]} 16. Ra4 {[%emt 0:07:45]} O-O {[%emt 0:02:04]} 17. e3 {[%emt 0:08:27]} f5 {[%emt 0:01:41]} 18. Ne2 {[%emt 0:00:45]} Nc7 {[%emt 0:03:37]} 19. Nd7 {[%emt 0:05:00]} Rf7 {[%emt 0:03:24]} 20. Bxc7 {[%emt 0:00:54]} Rxd7 {[%emt 0:00:21]} 21. Bd6 {[%emt 0:00:06]} a6 {[%emt 0:01:40]} 22. Nc3 {[%emt 0:04:20]} Rf7 {[%emt 0:02:08]} 23. Nb1 {[%emt 0:01:54]} Bg6 {[%emt 0:02:38]} 24. Nd2 {[%emt 0:00:35]} h5 {[%emt 0:02:55]} 25. gxf5 {[%emt 0:01:22]} Bxf5 {[%emt 0:01:43]} 26. h4 {[%emt 0:00:16]} g4 {[%emt 0:01:31]} 27. Nc4 {[%emt 0:00:24]} Bf6 {[%emt 0:00:54]} 28. Ke2 {[%emt 0:00:55]} Kh7 {[%emt 0:00:51]} 29. Rb4 {[%emt 0:00:31]} Rg8 {[%emt 0:01:03]} 30. Bg3 {[%emt 0:01:30]} Rgg7 {[%emt 0:01:46]} 31. Ra1 {[%emt 0:01:01]} Rd7 {[%emt 0:01:55]} 32. Raa4 {[%emt 0:00:24]} Bd8 {[%emt 0:01:15]} 33. Ra1 {[%emt 0:03:58]} Kg8 {[%emt 0:01:26]} 34. Rh1 {[%emt 0:00:10]} Rdf7 {[%emt 0:04:07]} 35. Bf4 {[%emt 0:00:58]} Rd7 {[%emt 0:03:47]} 36. Bd6 {[%emt 0:01:49]} Rh7 {[%emt 0:01:51]} 37. Kf1 {[%emt 0:00:22]} Rdg7 {[%emt 0:01:01]} 38. Kg2 {[%emt 0:00:42]} Rf7 {[%emt 0:01:13]} 39. Bf4 {[%emt 0:00:45]} Rhg7 {[%emt 0:03:10]} 40. Kg3 {[%emt 0:04:26]} Rh7 {[%emt 0:00:49]} 41. Nd6 {[%emt 0:00:43]} Rd7 {[%emt 0:00:41]} 42. Rd1 {[%emt 0:02:29]} Ba5 {[%emt 0:01:43]} 43. Ra4 {[%emt 0:00:12]} Bc7 {[%emt 0:00:41]} 44. Rd2 {[%emt 0:00:34]} Bg6 {[%emt 0:00:58]} 45. Rd1 {[%emt 0:01:02]} Kf8 {[%emt 0:01:27]} 46. Rda1 {[%emt 0:00:40]} Kg8 {[%emt 0:02:28]} 47. Rb4 {[%emt 0:00:16]} a5 {[%emt 0:04:19]} 48. Rb6 {[%emt 0:02:22]} Bxb6 {[%emt 0:00:55]} 49. cxb6 {[%emt 0:00:03]} Kf8 {[%emt 0:01:17]} 50. Rxa5 {[%emt 0:00:16]} Ke7 {[%emt 0:00:43]} 51. Nc8+ {[%emt 0:00:27]} Kf8 {[%emt 0:02:27]} 52. Ra8 {[%emt 0:00:37]} Rd8 {[%emt 0:00:43]} 53. Rb8 {[%emt 0:00:59]} Rhd7 {[%emt 0:00:33]} 54. Bc7 {[%emt 0:01:00]} Re8 {[%emt 0:00:13]} 55. Nd6 {[%emt 0:00:15]} Rxb8 {[%emt 0:00:30]} 56. Bxb8 {[%emt 0:00:03]} Ke7 {[%emt 0:00:24]} 57. Nc4 {[%emt 0:00:37]} Rd5 {[%emt 0:00:16]} 58. b4 {[%emt 0:00:21]} Kd7 {[%emt 0:02:09]} 59. Bc7 {[%emt 0:00:40]} Bh7 {[%emt 0:00:25]} 60. Kg2 {[%emt 0:01:00]} Bf5 {[%emt 0:00:48]} 61. Kf1 {[%emt 0:00:18]} Bh7 {[%emt 0:00:33]} 62. Ke1 {[%emt 0:00:03]} Bg8 {[%emt 0:00:24]} 63. Nd2 {[%emt 0:00:56]} Bh7 {[%emt 0:00:20]} 64. Nb3 {[%emt 0:00:10]} Rb5 {[%emt 0:00:36]} 65. Nc5+ {[%emt 0:00:25]} Kc8 {[%emt 0:00:34]} 66. Kd2 {[%emt 0:00:24]} Rxb4 {[%emt 0:00:23]} 67. Kc3 {[%emt 0:00:06]} Rb5 {[%emt 0:00:13]} 68. Nxe6 {[%emt 0:00:32]} Rf5 {[%emt 0:00:39]} 69. Ng5 {[%emt 0:00:46]} Rxg5 {[%emt 0:00:46]} 70. hxg5 {[%emt 0:00:03]} h4 {[%emt 0:00:27]} 71. d5 {[%emt 0:01:21]} cxd5 {[%emt 0:00:01]} 72. Kd4 {[%emt 0:00:04]} Bg8 {[%emt 0:00:57]} 73. Bf4 {[%emt 0:00:35]} Kd7 {[%emt 0:00:25]} 74. Ke5 {[%emt 0:00:02]} Kc6 {[%emt 0:00:57]} 75. Bh2 {[%emt 0:01:26]} Kxb6 {[%emt 0:00:19]} 76. Kf5 {[%emt 0:00:09]} g3 {[%emt 0:00:13]} 77. fxg3 {[%emt 0:00:02]} h3 {[%emt 0:00:25]} 78. g6 {[%emt 0:01:37]} Kc5 {[%emt 0:00:32]} 79. g4 {[%emt 0:00:32]} Kc4 {[%emt 0:00:24]} 80. Bg1 {[%emt 0:00:15]} d4 {[%emt 0:00:17]} 81. b3+ {[%emt 0:00:24]} Kc3 {[%emt 0:00:12]} 82. exd4 {[%emt 0:00:48]} 0-1